[Event "Dvaro taure"]
[Site "Taujenai, Lithuania"]
[Date "2021.11.28"]
[Round "8.18"]
[White "Paliulis, Aivaras"]
[Black "Andrijauskas, Domas"]
[Result "0-1"]
[WhiteElo "1714"]
[BlackElo "1441"]
[PlyCount "134"]
[EventDate "2021.??.??"]
[TimeControl "10+5"]
[BlackClock "0:00:18"]

1. e4 {[%emt 0:01:05]} c5 {[%emt 0:00:03]} 2. Nc3 {[%emt 0:00:02]} g6 {[%emt 0:
00:11]} 3. g3 {[%emt 0:00:03]} Bg7 {[%emt 0:00:00]} 4. Bg2 {[%emt 0:00:01]} Nc6
{[%emt 0:00:03]} 5. d3 {[%emt 0:00:00]} d6 {[%emt 0:00:01]} 6. Be3 {[%emt 0:00:
00]} Nf6 {[%emt 0:00:16]} 7. f3 {[%emt 0:00:03]} O-O {[%emt 0:00:07]} 8. Qd2 {
[%emt 0:00:00]} a6 {[%emt 0:00:31]} 9. Bh6 {[%emt 0:00:03]} d5 {[%emt 0:01:11]}
10. h4 {[%emt 0:00:30]} Qd6 {[%emt 0:01:58]} 11. g4 {[%emt 0:01:15]} dxe4 {
[%emt 0:01:46]} 12. Bxg7 {[%emt 0:00:54]} Kxg7 {[%emt 0:00:29]} 13. h5 {[%emt
0:03:09]} Qg3+ {[%emt 0:02:37]} 14. Kf1 {[%emt 0:00:23]} gxh5 {[%emt 0:00:28]}
15. Nge2 {[%emt 0:02:11]} Qe5 {[%emt 0:00:47]} 16. f4 {[%emt 0:00:26]} Qd6 {
[%emt 0:00:32]} 17. g5 {[%emt 0:00:24]} Ng4 {[%emt 0:00:18]} 18. Nxe4 {[%emt 0:
01:08]} Qc7 {[%emt 0:00:02]} 19. N2g3 {[%emt 0:00:25]} b6 {[%emt 0:00:03]} 20.
Nxh5+ {[%emt 0:00:18]} Kg8 {[%emt 0:00:01]} 21. Bf3 {[%emt 0:00:13]} Nd4 {
[%emt 0:00:04]} 22. Bxg4 {[%emt 0:00:03]} Bxg4 {[%emt 0:00:01]} 23. Nhf6+ {
[%emt 0:00:03]} exf6 {[%emt 0:00:14]} 24. Nxf6+ {[%emt 0:00:02]} Kg7 {[%emt 0:
00:01]} 25. Rxh7+ {[%emt 0:00:11]} Kg6 {[%emt 0:00:00]} 26. Rh6+ {[%emt 0:00:
03]} Kf5 {[%emt 0:00:02]} 27. Qe3 {[%emt 0:00:26]} Qxf4+ {[%emt 0:00:07]} 28.
Qxf4+ {[%emt 0:00:04]} Kxf4 {[%emt 0:00:01]} 29. Kf2 {[%emt 0:00:07]} Kxg5 {
[%emt 0:00:03]} 30. Nxg4 {[%emt 0:00:02]} Kxg4 {[%emt 0:00:01]} 31. Rg1+ {
[%emt 0:00:02]} Kf5 {[%emt 0:00:01]} 32. c3 {[%emt 0:00:03]} Ne6 {[%emt 0:00:
05]} 33. Rf1 {[%emt 0:00:12]} Ke5 {[%emt 0:00:02]} 34. Ke3 {[%emt 0:00:01]} f5
{[%emt 0:00:07]} 35. Re1 {[%emt 0:00:05]} Rae8 {[%emt 0:00:11]} 36. Kf3+ {
[%emt 0:00:06]} Kd6 {[%emt 0:00:03]} 37. b3 {[%emt 0:00:09]} Kd7 {[%emt 0:00:
05]} 38. Rh7+ {[%emt 0:00:03]} Re7 {[%emt 0:00:03]} 39. Rh6 {[%emt 0:00:03]}
Ng5+ {[%emt 0:00:04]} 40. Kf2 {[%emt 0:00:04]} Rxe1 {[%emt 0:00:01]} 41. Kxe1 {
[%emt 0:00:01]} Ne6 {[%emt 0:00:12]} 42. Rh7+ {[%emt 0:00:05]} Kc6 {[%emt 0:00:
00]} 43. Rh6 {[%emt 0:00:04]} Kd5 {[%emt 0:00:03]} 44. c4+ {[%emt 0:00:03]} Ke5
{[%emt 0:00:01]} 45. Kf2 {[%emt 0:00:04]} Rg8 {[%emt 0:00:16]} 46. Rh7 {[%emt
0:00:12]} Rd8 {[%emt 0:00:05]} 47. Ke3 {[%emt 0:00:04]} Rg8 {[%emt 0:00:03]}
48. Rb7 {[%emt 0:00:03]} Rg3+ {[%emt 0:00:04]} 49. Kd2 {[%emt 0:00:01]} Rg2+ {
[%emt 0:00:12]} 50. Ke3 {[%emt 0:00:06]} Rxa2 {[%emt 0:00:05]} 51. Rxb6 {[%emt
0:00:01]} Ra3 {[%emt 0:00:07]} 52. b4 {[%emt 0:00:05]} cxb4 {[%emt 0:00:08]}
53. Rxb4 {[%emt 0:00:02]} Nc5 {[%emt 0:00:06]} 54. Rb8 {[%emt 0:00:13]} Rxd3+ {
[%emt 0:00:02]} 55. Ke2 {[%emt 0:00:02]} Kd4 {[%emt 0:00:05]} 56. Rf8 {[%emt 0:
00:06]} Kxc4 {[%emt 0:00:06]} 57. Rxf5 {[%emt 0:00:01]} Rd4 {[%emt 0:00:04]}
58. Rf8 {[%emt 0:00:19]} a5 {[%emt 0:00:02]} 59. Ra8 {[%emt 0:00:02]} Kb4 {
[%emt 0:00:04]} 60. Ke3 {[%emt 0:00:02]} Rd6 {[%emt 0:00:04]} 61. Rb8+ {[%emt
0:00:06]} Ka3 {[%emt 0:00:02]} 62. Rc8 {[%emt 0:00:06]} Nb3 {[%emt 0:00:05]}
63. Ra8 {[%emt 0:00:09]} a4 {[%emt 0:00:01]} 64. Ra7 {[%emt 0:00:01]} Rd4 {
[%emt 0:00:14]} 65. Rb7 {[%emt 0:00:06]} Kb2 {[%emt 0:00:08]} 66. Rxb3+ {[%emt
0:00:09]} axb3 {[%emt 0:00:04]} 67. Kxd4 {[%emt 0:00:05]} Kc2 {[%emt 0:00:05]}
0-1

[Event "Dvaro taure"]
[Site "Taujenai, Lithuania"]
[Date "2021.11.28"]
[Round "8.19"]
[White "Jasas, Ignas"]
[Black "Vainermanas, Berelis"]
[Result "0-1"]
[WhiteElo "1216"]
[BlackElo "1663"]
[PlyCount "129"]
[EventDate "2021.??.??"]
[TimeControl "10+5"]
[WhiteClock "0:00:42"]
[BlackClock "0:01:35"]

1. e4 {[%emt 0:00:02]} c5 {[%emt 0:00:03]} 2. Nf3 {[%emt 0:00:03]} g6 {[%emt 0:
00:01]} 3. d4 {[%emt 0:00:05]} cxd4 {[%emt 0:00:01]} 4. Nxd4 {[%emt 0:00:02]}
Bg7 {[%emt 0:00:01]} 5. Nc3 {[%emt 0:00:02]} Nc6 {[%emt 0:00:06]} 6. Be3 {
[%emt 0:00:02]} Nf6 {[%emt 0:00:05]} 7. Qd2 {[%emt 0:00:11]} Ng4 {[%emt 0:00:
04]} 8. O-O-O {[%emt 0:00:08]} Nxe3 {[%emt 0:00:03]} 9. Qxe3 {[%emt 0:00:02]}
Nxd4 {[%emt 0:00:10]} 10. Rxd4 {[%emt 0:00:01]} Bxd4 {[%emt 0:00:15]} 11. Qxd4
{[%emt 0:00:01]} O-O {[%emt 0:00:15]} 12. Bd3 {[%emt 0:00:11]} d6 {[%emt 0:00:
03]} 13. h4 {[%emt 0:00:11]} h5 {[%emt 0:00:03]} 14. f4 {[%emt 0:00:22]} Qb6 {
[%emt 0:00:35]} 15. Qc4 {[%emt 0:00:16]} Be6 {[%emt 0:00:05]} 16. Nd5 {[%emt 0:
00:03]} Bxd5 {[%emt 0:00:03]} 17. exd5 {[%emt 0:00:02]} Rac8 {[%emt 0:00:19]}
18. Qe4 {[%emt 0:00:02]} Qa5 {[%emt 0:00:50]} 19. Kb1 {[%emt 0:00:17]} Qd2 {
[%emt 0:00:35]} 20. f5 {[%emt 0:00:11]} Qh6 {[%emt 0:00:03]} 21. g4 {[%emt 0:
00:07]} hxg4 {[%emt 0:00:08]} 22. Qxg4 {[%emt 0:00:19]} Kh8 {[%emt 0:00:33]}
23. fxg6 {[%emt 0:01:39]} fxg6 {[%emt 0:00:08]} 24. h5 {[%emt 0:00:19]} g5 {
[%emt 0:00:03]} 25. Qd4+ {[%emt 0:00:11]} Rf6 {[%emt 0:00:41]} 26. Qxa7 {[%emt
0:00:33]} g4 {[%emt 0:01:17]} 27. Qd4 {[%emt 0:01:21]} g3 {[%emt 0:00:13]} 28.
Rg1 {[%emt 0:00:19]} Rg8 {[%emt 0:00:06]} 29. Bg6 {[%emt 0:00:05]} Qf4 {[%emt
0:00:13]} 30. Qxf4 {[%emt 0:00:21]} Rxf4 {[%emt 0:00:02]} 31. a3 {[%emt 0:00:
18]} Rg4 {[%emt 0:00:11]} 32. Kc1 {[%emt 0:00:27]} Rf8 {[%emt 0:00:08]} 33. Kd1
{[%emt 0:00:49]} Rf2 {[%emt 0:00:35]} 34. Bd3 {[%emt 0:00:59]} Kg7 {[%emt 0:00:
17]} 35. Ke1 {[%emt 0:00:09]} Rh2 {[%emt 0:00:19]} 36. b4 {[%emt 0:00:48]} Rxh5
{[%emt 0:00:07]} 37. Be2 {[%emt 0:00:07]} Re5 {[%emt 0:00:03]} 38. Kf1 {[%emt
0:00:34]} Rf4+ {[%emt 0:00:29]} 39. Ke1 {[%emt 0:00:10]} Rg5 {[%emt 0:00:16]}
40. c4 {[%emt 0:00:19]} Kf6 {[%emt 0:00:02]} 41. Rg2 {[%emt 0:00:13]} Ke5 {
[%emt 0:00:13]} 42. a4 {[%emt 0:00:09]} Kd4 {[%emt 0:00:05]} 43. a5 {[%emt 0:
00:06]} Kc3 {[%emt 0:00:31]} 44. b5 {[%emt 0:00:06]} Rh4 {[%emt 0:00:32]} 45.
Kf1 {[%emt 0:01:00]} Rh1+ {[%emt 0:00:21]} 46. Rg1 {[%emt 0:00:02]} Rxg1+ {
[%emt 0:00:59]} 47. Kxg1 {[%emt 0:00:00]} Kd4 {[%emt 0:00:08]} 48. a6 {[%emt 0:
00:09]} bxa6 {[%emt 0:00:02]} 49. bxa6 {[%emt 0:00:01]} Kc5 {[%emt 0:00:09]}
50. a7 {[%emt 0:00:04]} Rg8 {[%emt 0:00:04]} 51. Kg2 {[%emt 0:00:24]} Kb6 {
[%emt 0:00:01]} 52. a8=Q {[%emt 0:00:06]} Rxa8 {[%emt 0:00:01]} 53. Kxg3 {
[%emt 0:00:02]} Kc5 {[%emt 0:00:05]} 54. Kf4 {[%emt 0:00:01]} Ra4 {[%emt 0:00:
10]} 55. Kf5 {[%emt 0:00:28]} Rxc4 {[%emt 0:00:06]} 56. Bxc4 {[%emt 0:00:01]}
Kxc4 {[%emt 0:00:02]} 57. Ke6 {[%emt 0:00:04]} Kd4 {[%emt 0:00:03]} 58. Kxe7 {
[%emt 0:00:03]} Kxd5 {[%emt 0:00:02]} 59. Kd7 {[%emt 0:00:03]} Ke5 {[%emt 0:00:
02]} 60. Kc6 {[%emt 0:00:01]} d5 {[%emt 0:00:03]} 61. Kc5 {[%emt 0:00:01]} Ke4
{[%emt 0:00:01]} 62. Kb4 {[%emt 0:00:01]} d4 {[%emt 0:00:03]} 63. Kb3 {[%emt 0:
00:02]} Ke3 {[%emt 0:00:01]} 64. Kc2 {[%emt 0:00:01]} Ke2 {[%emt 0:00:03]} 65.
Kb2 {[%emt 0:00:07]} 0-1

[Event "Dvaro taure"]
[Site "Taujenai, Lithuania"]
[Date "2021.11.28"]
[Round "8.20"]
[White "Zalimas, Ugnius"]
[Black "Velicka, Ramunas"]
[Result "1-0"]
[WhiteElo "1392"]
[BlackElo "1606"]
[PlyCount "121"]
[EventDate "2021.??.??"]
[TimeControl "10+5"]
[WhiteClock "0:05:04"]
[BlackClock "0:01:56"]

1. e4 {[%emt 0:00:00]} e5 {[%emt 0:00:02]} 2. Nf3 {[%emt 0:00:02]} Nf6 {[%emt
0:00:02]} 3. Nc3 {[%emt 0:00:00]} Nc6 {[%emt 0:00:03]} 4. d4 {[%emt 0:00:01]}
d6 {[%emt 0:00:14]} 5. dxe5 {[%emt 0:00:02]} Nxe5 {[%emt 0:00:05]} 6. Nxe5 {
[%emt 0:00:01]} dxe5 {[%emt 0:00:01]} 7. Qxd8+ {[%emt 0:00:02]} Kxd8 {[%emt 0:
00:01]} 8. Bg5 {[%emt 0:00:02]} Bd6 {[%emt 0:00:04]} 9. Nd5 {[%emt 0:00:03]} h6
{[%emt 0:00:21]} 10. Bxf6+ {[%emt 0:00:17]} gxf6 {[%emt 0:00:02]} 11. Nxf6 {
[%emt 0:00:02]} Ke7 {[%emt 0:00:07]} 12. Nd5+ {[%emt 0:00:02]} Kf8 {[%emt 0:01:
36]} 13. O-O-O {[%emt 0:00:10]} Be6 {[%emt 0:00:06]} 14. g3 {[%emt 0:00:13]}
Kg7 {[%emt 0:00:03]} 15. Bg2 {[%emt 0:00:05]} Rad8 {[%emt 0:00:07]} 16. Ne3 {
[%emt 0:00:07]} Bc5 {[%emt 0:00:16]} 17. Rhf1 {[%emt 0:00:34]} Bxa2 {[%emt 0:
00:09]} 18. Nf5+ {[%emt 0:00:17]} Kh7 {[%emt 0:00:43]} 19. f4 {[%emt 0:00:27]}
Bc4 {[%emt 0:00:03]} 20. Rxd8 {[%emt 0:00:39]} Rxd8 {[%emt 0:00:01]} 21. Rf3 {
[%emt 0:00:01]} Be2 {[%emt 0:00:17]} 22. Rf1 {[%emt 0:01:11]} Bxf1 {[%emt 0:00:
18]} 23. Bxf1 {[%emt 0:00:02]} exf4 {[%emt 0:00:19]} 24. gxf4 {[%emt 0:00:01]}
Rg8 {[%emt 0:00:16]} 25. Bd3 {[%emt 0:00:28]} Rg4 {[%emt 0:00:19]} 26. Kb1 {
[%emt 0:00:47]} Rxf4 {[%emt 0:00:06]} 27. Ka2 {[%emt 0:00:04]} a6 {[%emt 0:00:
18]} 28. h4 {[%emt 0:00:16]} Kh8 {[%emt 0:01:31]} 29. Nxh6 {[%emt 0:00:07]}
Rxh4 {[%emt 0:00:09]} 30. Nxf7+ {[%emt 0:00:02]} Kg7 {[%emt 0:00:08]} 31. Ng5 {
[%emt 0:00:06]} Be7 {[%emt 0:00:13]} 32. Ne6+ {[%emt 0:00:06]} Kf6 {[%emt 0:00:
10]} 33. Nxc7 {[%emt 0:00:03]} Ke5 {[%emt 0:00:24]} 34. Nd5 {[%emt 0:00:11]}
Bd8 {[%emt 0:00:06]} 35. Kb1 {[%emt 0:00:37]} Rh1+ {[%emt 0:00:39]} 36. Ka2 {
[%emt 0:00:02]} Rg1 {[%emt 0:00:02]} 37. Ne3 {[%emt 0:00:26]} Rg6 {[%emt 0:00:
13]} 38. Nd5 {[%emt 0:00:10]} Rh6 {[%emt 0:00:16]} 39. Ne3 {[%emt 0:00:04]} Bb6
{[%emt 0:00:26]} 40. Ng4+ {[%emt 0:00:02]} Kf4 {[%emt 0:00:19]} 41. Nxh6 {
[%emt 0:00:02]} Bc7 {[%emt 0:00:01]} 42. Ng8 {[%emt 0:00:11]} Ke5 {[%emt 0:00:
03]} 43. Ne7 {[%emt 0:00:04]} Bd6 {[%emt 0:00:09]} 44. Nd5 {[%emt 0:00:04]} Kd4
{[%emt 0:00:07]} 45. Kb3 {[%emt 0:00:10]} b5 {[%emt 0:00:08]} 46. Nf6 {[%emt 0:
00:20]} Be5 {[%emt 0:00:30]} 47. Ng4 {[%emt 0:00:09]} Bd6 {[%emt 0:00:18]} 48.
Nf2 {[%emt 0:00:35]} Kc5 {[%emt 0:00:06]} 49. Nd1 {[%emt 0:00:14]} a5 {[%emt 0:
00:04]} 50. Nc3 {[%emt 0:00:11]} a4+ {[%emt 0:00:09]} 51. Ka2 {[%emt 0:00:04]}
a3 {[%emt 0:00:43]} 52. bxa3 {[%emt 0:00:06]} b4 {[%emt 0:00:01]} 53. axb4+ {
[%emt 0:00:11]} Kxb4 {[%emt 0:00:02]} 54. Nd5+ {[%emt 0:00:02]} Kc5 {[%emt 0:
00:08]} 55. Kb3 {[%emt 0:00:01]} Kd4 {[%emt 0:00:10]} 56. Nf6 {[%emt 0:00:15]}
Be7 {[%emt 0:00:14]} 57. Ng4 {[%emt 0:00:04]} Bg5 {[%emt 0:00:09]} 58. e5 {
[%emt 0:00:15]} Be7 {[%emt 0:00:14]} 59. Bf5 {[%emt 0:00:21]} Kc5 {[%emt 0:00:
15]} 60. Bd7 {[%emt 0:00:02]} Kd5 {[%emt 0:00:10]} 61. e6 {[%emt 0:00:03]} 1-0

[Event "Dvaro taure"]
[Site "Taujenai, Lithuania"]
[Date "2021.11.28"]
[Round "8.21"]
[White "Aleidzans, Vadims"]
[Black "Satkauskas, Benediktas"]
[Result "1/2-1/2"]
[WhiteElo "1563"]
[BlackElo "1392"]
[PlyCount "64"]
[EventDate "2021.??.??"]
[TimeControl "10+5"]
[WhiteClock "0:02:31"]
[BlackClock "0:02:08"]

1. e4 {[%emt 0:00:02]} c6 {[%emt 0:00:03]} 2. d4 {[%emt 0:00:02]} d5 {[%emt 0:
00:01]} 3. Nd2 {[%emt 0:00:02]} dxe4 {[%emt 0:00:03]} 4. Nxe4 {[%emt 0:00:02]}
Nf6 {[%emt 0:00:02]} 5. Nxf6+ {[%emt 0:00:04]} exf6 {[%emt 0:00:03]} 6. c3 {
[%emt 0:00:03]} Bd6 {[%emt 0:00:02]} 7. Bd3 {[%emt 0:00:04]} O-O {[%emt 0:00:
04]} 8. Qc2 {[%emt 0:00:02]} Re8+ {[%emt 0:00:11]} 9. Ne2 {[%emt 0:00:03]} h6 {
[%emt 0:00:04]} 10. O-O {[%emt 0:00:07]} Bg4 {[%emt 0:00:26]} 11. Ng3 {[%emt 0:
00:21]} Bxg3 {[%emt 0:00:34]} 12. hxg3 {[%emt 0:00:03]} Nd7 {[%emt 0:00:16]}
13. Bf4 {[%emt 0:00:05]} c5 {[%emt 0:00:19]} 14. Bf5 {[%emt 0:01:48]} Bxf5 {
[%emt 0:00:39]} 15. Qxf5 {[%emt 0:00:02]} cxd4 {[%emt 0:00:06]} 16. cxd4 {
[%emt 0:00:01]} Nf8 {[%emt 0:00:02]} 17. Rfd1 {[%emt 0:00:18]} Ng6 {[%emt 0:00:
10]} 18. Be3 {[%emt 0:00:09]} Qd6 {[%emt 0:00:21]} 19. Qf3 {[%emt 0:00:27]} Qd7
{[%emt 0:00:25]} 20. Rac1 {[%emt 0:00:22]} Rac8 {[%emt 0:00:05]} 21. Rc5 {
[%emt 0:00:35]} b6 {[%emt 0:00:32]} 22. Rc3 {[%emt 0:00:31]} Rxc3 {[%emt 0:00:
14]} 23. bxc3 {[%emt 0:00:02]} Rc8 {[%emt 0:00:02]} 24. Rc1 {[%emt 0:00:21]}
Rc4 {[%emt 0:01:10]} 25. d5 {[%emt 0:01:47]} Ne5 {[%emt 0:00:47]} 26. Qe2 {
[%emt 0:00:02]} Qxd5 {[%emt 0:00:39]} 27. Rd1 {[%emt 0:00:23]} Qe4 {[%emt 0:00:
23]} 28. Rd4 {[%emt 0:01:09]} Rxd4 {[%emt 0:00:24]} 29. cxd4 {[%emt 0:00:02]}
Nc6 {[%emt 0:01:48]} 30. Qc4 {[%emt 0:00:27]} Qg4 {[%emt 0:00:53]} 31. Qxc6 {
[%emt 0:00:32]} Qd1+ {[%emt 0:00:03]} 32. Kh2 {[%emt 0:00:01]} Qh5+ {[%emt 0:
00:01]} 1/2-1/2

[Event "Dvaro taure"]
[Site "Taujenai, Lithuania"]
[Date "2021.11.28"]
[Round "8.22"]
[White "Mecelis, Arturas (J)"]
[Black "Mendelis, Mantas"]
[Result "0-1"]
[WhiteElo "1562"]
[BlackElo "1021"]
[PlyCount "51"]
[EventDate "2021.??.??"]
[TimeControl "10+5"]
[WhiteClock "0:00:10"]
[BlackClock "0:02:06"]

1. d4 {[%emt 0:00:00]} d5 {[%emt 0:00:02]} 2. c4 {[%emt 0:00:02]} c6 {[%emt 0:
00:01]} 3. Nc3 {[%emt 0:00:03]} Nf6 {[%emt 0:00:00]} 4. Bg5 {[%emt 0:00:02]}
Nbd7 {[%emt 0:00:03]} 5. Nf3 {[%emt 0:00:09]} e6 {[%emt 0:00:02]} 6. e3 {[%emt
0:00:02]} Qa5 {[%emt 0:00:04]} 7. Nd2 {[%emt 0:01:09]} Bb4 {[%emt 0:00:18]} 8.
Qc2 {[%emt 0:00:07]} dxc4 {[%emt 0:01:16]} 9. Bxf6 {[%emt 0:00:04]} Nxf6 {
[%emt 0:00:05]} 10. Nxc4 {[%emt 0:00:04]} Qg5 {[%emt 0:00:35]} 11. a3 {[%emt 0:
00:56]} Be7 {[%emt 0:00:11]} 12. Ne4 {[%emt 0:00:26]} Nxe4 {[%emt 0:00:04]} 13.
Qxe4 {[%emt 0:00:03]} O-O {[%emt 0:00:26]} 14. Bd3 {[%emt 0:00:06]} g6 {[%emt
0:00:12]} 15. O-O {[%emt 0:04:42]} Rb8 {[%emt 0:00:31]} 16. Ne5 {[%emt 0:00:41]
} Bd6 {[%emt 0:00:29]} 17. f4 {[%emt 0:00:17]} Qd8 {[%emt 0:00:39]} 18. Rf3 {
[%emt 0:00:32]} Bxe5 {[%emt 0:00:28]} 19. fxe5 {[%emt 0:00:13]} b6 {[%emt 0:00:
27]} 20. Qf4 {[%emt 0:00:59]} Bb7 {[%emt 0:00:25]} 21. Rh3 {[%emt 0:00:16]} f5
{[%emt 0:01:18]} 22. Qh6 {[%emt 0:00:45]} Rf7 {[%emt 0:00:11]} 23. Bc4 {[%emt
0:00:22]} Qd7 {[%emt 0:00:34]} 24. Rf1 {[%emt 0:00:08]} Re8 {[%emt 0:00:43]}
25. Rf4 {[%emt 0:00:10]} c5 {[%emt 0:00:44]} 26. Rg3 {[%emt 0:00:11]} 0-1

[Event "Dvaro taure"]
[Site "Taujenai, Lithuania"]
[Date "2021.11.28"]
[Round "8.23"]
[White "Mikolavicius, Julius"]
[Black "Bubnys, Marius"]
[Result "0-1"]
[WhiteElo "1152"]
[BlackElo "1490"]
[PlyCount "156"]
[EventDate "2021.??.??"]
[TimeControl "10+5"]
[WhiteClock "0:03:32"]
[BlackClock "0:04:38"]

1. e4 {[%emt 0:00:00]} d6 {[%emt 0:00:00]} 2. d4 {[%emt 0:00:05]} Nf6 {[%emt 0:
00:02]} 3. Nc3 {[%emt 0:00:00]} g6 {[%emt 0:00:00]} 4. g3 {[%emt 0:00:02]} Bg7
{[%emt 0:00:00]} 5. Bg2 {[%emt 0:00:02]} O-O {[%emt 0:00:03]} 6. Nf3 {[%emt 0:
00:03]} Bg4 {[%emt 0:00:02]} 7. O-O {[%emt 0:00:05]} Qd7 {[%emt 0:00:01]} 8.
Bg5 {[%emt 0:00:05]} Bh3 {[%emt 0:00:03]} 9. Qd2 {[%emt 0:00:08]} Bxg2 {[%emt
0:00:02]} 10. Kxg2 {[%emt 0:00:01]} Nc6 {[%emt 0:00:09]} 11. Bh6 {[%emt 0:00:
04]} a6 {[%emt 0:00:13]} 12. Bxg7 {[%emt 0:00:02]} Kxg7 {[%emt 0:00:01]} 13. d5
{[%emt 0:00:25]} Nd8 {[%emt 0:00:11]} 14. Rfe1 {[%emt 0:00:32]} e5 {[%emt 0:00:
14]} 15. Rad1 {[%emt 0:00:26]} b5 {[%emt 0:00:02]} 16. a3 {[%emt 0:00:03]} Nb7
{[%emt 0:00:02]} 17. b4 {[%emt 0:00:04]} Rac8 {[%emt 0:00:14]} 18. Ne2 {[%emt
0:01:19]} h6 {[%emt 0:00:16]} 19. h3 {[%emt 0:00:05]} Nxe4 {[%emt 0:00:09]} 20.
Qe3 {[%emt 0:00:24]} f5 {[%emt 0:00:23]} 21. Nc3 {[%emt 0:00:24]} Nxc3 {[%emt
0:00:06]} 22. Qxc3 {[%emt 0:00:03]} f4 {[%emt 0:00:17]} 23. g4 {[%emt 0:00:17]}
Nd8 {[%emt 0:00:16]} 24. Re2 {[%emt 0:00:42]} Nf7 {[%emt 0:00:03]} 25. Rde1 {
[%emt 0:00:05]} Qd8 {[%emt 0:00:12]} 26. Qc6 {[%emt 0:00:17]} Ra8 {[%emt 0:00:
35]} 27. c4 {[%emt 0:00:13]} bxc4 {[%emt 0:00:43]} 28. Qxc4 {[%emt 0:00:02]}
Qd7 {[%emt 0:00:06]} 29. Qc3 {[%emt 0:00:24]} Ng5 {[%emt 0:00:11]} 30. Nxg5 {
[%emt 0:00:03]} hxg5 {[%emt 0:00:01]} 31. f3 {[%emt 0:00:08]} Rh8 {[%emt 0:00:
02]} 32. Qc6 {[%emt 0:00:36]} Qxc6 {[%emt 0:00:03]} 33. dxc6 {[%emt 0:00:00]}
Rab8 {[%emt 0:00:44]} 34. Rc2 {[%emt 0:00:31]} Rb5 {[%emt 0:00:08]} 35. Rd1 {
[%emt 0:00:15]} a5 {[%emt 0:00:24]} 36. Rb2 {[%emt 0:00:44]} axb4 {[%emt 0:00:
03]} 37. Rxb4 {[%emt 0:00:04]} Rxb4 {[%emt 0:00:17]} 38. axb4 {[%emt 0:00:00]}
Rb8 {[%emt 0:00:03]} 39. Rb1 {[%emt 0:00:02]} Rb5 {[%emt 0:00:02]} 40. Kf2 {
[%emt 0:00:20]} Kf7 {[%emt 0:00:00]} 41. Ke2 {[%emt 0:00:02]} Ke6 {[%emt 0:00:
00]} 42. Kd3 {[%emt 0:00:26]} Kd5 {[%emt 0:00:04]} 43. Kc3 {[%emt 0:00:57]}
Kxc6 {[%emt 0:00:13]} 44. Kc4 {[%emt 0:00:01]} Rb8 {[%emt 0:00:08]} 45. b5+ {
[%emt 0:00:05]} Kd7 {[%emt 0:00:01]} 46. Kd5 {[%emt 0:00:02]} Rb6 {[%emt 0:00:
08]} 47. Rb2 {[%emt 0:00:28]} c6+ {[%emt 0:00:04]} 48. bxc6+ {[%emt 0:00:04]}
Rxc6 {[%emt 0:00:02]} 49. Rb7+ {[%emt 0:00:01]} Rc7 {[%emt 0:00:02]} 50. Rb5 {
[%emt 0:00:13]} Rc5+ {[%emt 0:00:40]} 51. Rxc5 {[%emt 0:00:10]} dxc5 {[%emt 0:
00:00]} 52. Kxc5 {[%emt 0:00:01]} e4 {[%emt 0:00:04]} 53. Kd4 {[%emt 0:00:26]}
e3 {[%emt 0:00:03]} 54. Kd3 {[%emt 0:00:02]} Kd6 {[%emt 0:00:15]} 55. Ke2 {
[%emt 0:00:02]} Kd5 {[%emt 0:00:01]} 56. Kd3 {[%emt 0:00:01]} Ke5 {[%emt 0:00:
04]} 57. Kc3 {[%emt 0:00:08]} Kd5 {[%emt 0:00:06]} 58. Kd3 {[%emt 0:00:01]} Kc5
{[%emt 0:00:01]} 59. Kc3 {[%emt 0:00:02]} Kb5 {[%emt 0:00:37]} 60. Kd3 {[%emt
0:00:06]} Kb4 {[%emt 0:00:03]} 61. Kc2 {[%emt 0:00:09]} Kc4 {[%emt 0:00:07]}
62. Kc1 {[%emt 0:00:06]} Kd3 {[%emt 0:00:01]} 63. Kd1 {[%emt 0:00:01]} e2+ {
[%emt 0:00:08]} 64. Ke1 {[%emt 0:00:00]} Ke3 {[%emt 0:00:35]} 65. h4 {[%emt 0:
00:02]} Kxf3 {[%emt 0:00:01]} 66. h5 {[%emt 0:00:09]} gxh5 {[%emt 0:00:35]} 67.
gxh5 {[%emt 0:00:03]} g4 {[%emt 0:00:01]} 68. h6 {[%emt 0:00:02]} g3 {[%emt 0:
00:00]} 69. h7 {[%emt 0:00:03]} g2 70. h8=Q {[%emt 0:00:06]} g1=Q+ {[%emt 0:00:
01]} 71. Kd2 {[%emt 0:00:00]} e1=Q+ {[%emt 0:00:11]} 72. Kd3 {[%emt 0:00:00]}
Qge3+ {[%emt 0:00:09]} 73. Kc4 {[%emt 0:00:02]} Q1c1+ {[%emt 0:00:13]} 74. Kb5
{[%emt 0:00:03]} Qec5+ {[%emt 0:00:07]} 75. Ka6 {[%emt 0:00:09]} Q1c4+ {[%emt
0:00:05]} 76. Kb7 {[%emt 0:00:03]} Q4b5+ {[%emt 0:00:03]} 77. Ka8 {[%emt 0:00:
02]} Qcc6+ {[%emt 0:00:05]} 78. Ka7 {[%emt 0:00:03]} Qbb7# {[%emt 0:00:02]} 0-1

[Event "Dvaro taure"]
[Site "Taujenai, Lithuania"]
[Date "2021.11.28"]
[Round "8.24"]
[White "Praspaliauskas, Matas"]
[Black "Matulaitis, Mantas"]
[Result "1/2-1/2"]
[WhiteElo "1443"]
[BlackElo "1176"]
[PlyCount "107"]
[EventDate "2021.??.??"]
[TimeControl "10+5"]
[WhiteClock "0:00:12"]
[BlackClock "0:01:54"]

1. e4 {[%emt 0:00:02]} b6 {[%emt 0:00:00]} 2. d4 {[%emt 0:00:01]} e6 {[%emt 0:
00:03]} 3. Nc3 {[%emt 0:00:03]} Bb7 {[%emt 0:00:02]} 4. g3 {[%emt 0:00:01]} d5
{[%emt 0:00:02]} 5. Bg2 {[%emt 0:00:09]} Bb4 {[%emt 0:00:07]} 6. exd5 {[%emt 0:
00:07]} Bxc3+ {[%emt 0:00:05]} 7. bxc3 {[%emt 0:00:01]} Bxd5 {[%emt 0:00:06]}
8. Bxd5 {[%emt 0:00:08]} Qxd5 {[%emt 0:00:01]} 9. Qf3 {[%emt 0:00:01]} Nf6 {
[%emt 0:00:12]} 10. c4 {[%emt 0:00:34]} Qxf3 {[%emt 0:00:11]} 11. Nxf3 {[%emt
0:00:01]} Nc6 {[%emt 0:00:08]} 12. Bb2 {[%emt 0:00:02]} O-O {[%emt 0:00:34]}
13. O-O {[%emt 0:00:13]} Ne4 {[%emt 0:00:15]} 14. Rad1 {[%emt 0:01:47]} Nb4 {
[%emt 0:00:55]} 15. c3 {[%emt 0:02:56]} Na6 {[%emt 0:00:07]} 16. Nd2 {[%emt 0:
02:48]} Nd6 {[%emt 0:00:42]} 17. Ba3 {[%emt 0:00:38]} Rac8 {[%emt 0:01:39]} 18.
c5 {[%emt 0:00:48]} Nb5 {[%emt 0:00:19]} 19. Bb2 {[%emt 0:00:41]} bxc5 {[%emt
0:00:13]} 20. dxc5 {[%emt 0:00:20]} Nxc5 {[%emt 0:00:03]} 21. c4 {[%emt 0:00:
07]} Nd6 {[%emt 0:00:07]} 22. Ba3 {[%emt 0:00:09]} Na6 {[%emt 0:00:09]} 23. Nb3
{[%emt 0:00:09]} Rfd8 {[%emt 0:00:07]} 24. c5 {[%emt 0:00:09]} Ne4 {[%emt 0:00:
41]} 25. Rxd8+ {[%emt 0:00:06]} Rxd8 {[%emt 0:00:02]} 26. Bb2 {[%emt 0:00:02]}
Nd2 {[%emt 0:00:08]} 27. Nxd2 {[%emt 0:00:03]} Rxd2 {[%emt 0:00:00]} 28. Ba3 {
[%emt 0:00:02]} Rxa2 {[%emt 0:00:10]} 29. Bc1 {[%emt 0:00:03]} Rc2 {[%emt 0:00:
02]} 30. Be3 {[%emt 0:00:01]} Kf8 {[%emt 0:00:14]} 31. Ra1 {[%emt 0:00:03]}
Nxc5 {[%emt 0:00:49]} 32. Rxa7 {[%emt 0:00:03]} Ne4 {[%emt 0:00:21]} 33. Ra4 {
[%emt 0:00:05]} Nd6 {[%emt 0:00:07]} 34. Kg2 {[%emt 0:00:08]} Ke7 {[%emt 0:00:
03]} 35. Ra7 {[%emt 0:00:04]} Kf6 {[%emt 0:00:04]} 36. Bd4+ {[%emt 0:00:08]}
Kg6 {[%emt 0:00:15]} 37. h4 {[%emt 0:00:07]} c5 {[%emt 0:00:10]} 38. Be3 {
[%emt 0:00:06]} Nc4 {[%emt 0:00:06]} 39. Bxc5 {[%emt 0:00:07]} Ne5 {[%emt 0:00:
26]} 40. Bd4 {[%emt 0:00:03]} Re2 {[%emt 0:00:13]} 41. Ra5 {[%emt 0:00:06]} f6
{[%emt 0:00:21]} 42. Kf1 {[%emt 0:00:11]} Re4 {[%emt 0:00:04]} 43. Bb2 {[%emt
0:00:05]} Nc4 {[%emt 0:00:38]} 44. Rb5 {[%emt 0:00:01]} Nxb2 {[%emt 0:00:37]}
45. Rxb2 {[%emt 0:00:01]} Rd4 {[%emt 0:00:07]} 46. Kg2 {[%emt 0:00:09]} Rd7 {
[%emt 0:00:07]} 47. Rb4 {[%emt 0:00:08]} f5 {[%emt 0:00:10]} 48. Rb6 {[%emt 0:
00:07]} Kf6 {[%emt 0:00:01]} 49. Kf3 {[%emt 0:00:03]} h6 {[%emt 0:00:04]} 50.
Kg2 {[%emt 0:00:02]} g5 {[%emt 0:00:04]} 51. hxg5+ {[%emt 0:00:02]} hxg5 {
[%emt 0:00:01]} 52. Rb8 {[%emt 0:00:01]} Rg7 {[%emt 0:00:06]} 53. Rb5 {[%emt 0:
00:08]} Rg8 {[%emt 0:00:22]} 54. Ra5 {[%emt 0:00:22]} 1/2-1/2